[Event "*** Titled Tuesday 3|2 Blitz"]
[Site "Chess.com"]
[Date "2015.10.06"]
[Round "4"]
[White "pKiLz5Rn9b"]
[Black "cheese111"]
[Result "1-0"]
[WhiteElo "2393"]
[BlackElo "2157"]
[TimeControl "180+2"]
[EndTime "17:47:18 PDT"]
[Termination "pKiLz5Rn9b won by resignation"]

1. e4 {[%clk 0:03:01.9]} 1... e5 {[%clk 0:03:00.4]} 2. Nf3 {[%clk 0:03:02.7]}
2... Nc6 {[%clk 0:03:01.4]} 3. Bc4 {[%clk 0:03:03.9]} 3... Nf6 {[%clk
0:03:01.4]} 4. d3 {[%clk 0:03:04.9]} 4... Be7 {[%clk 0:02:59.4]} 5. O-O {[%clk
0:03:05.5]} 5... O-O {[%clk 0:03:00.2]} 6. Re1 {[%clk 0:03:07.1]} 6... d6 {[%clk
0:02:56.3]} 7. Nc3 {[%clk 0:03:07.4]} 7... Be6 {[%clk 0:02:56.7]} 8. a4 {[%clk
0:03:08.1]} 8... h6 {[%clk 0:02:49.4]} 9. b3 {[%clk 0:02:56.1]} 9... Bg4 {[%clk
0:02:35.9]} 10. h3 {[%clk 0:02:49.3]} 10... Bxf3 {[%clk 0:02:30.2]} 11. Qxf3
{[%clk 0:02:48.7]} 11... Nd4 {[%clk 0:02:31.7]} 12. Qd1 {[%clk 0:02:48.7]} 12...
c6 {[%clk 0:02:11.6]} 13. Be3 {[%clk 0:02:45]} 13... d5 {[%clk 0:02:03.8]} 14.
exd5 {[%clk 0:02:24.7]} 14... cxd5 {[%clk 0:02:04.1]} 15. Bxd4 {[%clk
0:02:22.1]} 15... exd4 {[%clk 0:02:05]} 16. Nxd5 {[%clk 0:02:22.9]} 16... Nxd5
{[%clk 0:01:59.2]} 17. Bxd5 {[%clk 0:02:24.8]} 17... Bb4 {[%clk 0:01:46.6]} 18.
Re5 {[%clk 0:02:20.1]} 18... Qc7 {[%clk 0:01:26.8]} 19. Qe2 {[%clk 0:02:15.9]}
19... Rac8 {[%clk 0:01:26.6]} 20. Bc4 {[%clk 0:02:16.4]} 20... a6 {[%clk
0:00:57.6]} 21. Rf1 {[%clk 0:02:13.3]} 21... Bc5 {[%clk 0:00:50.8]} 22. f4
{[%clk 0:02:10.9]} 22... Bd6 {[%clk 0:00:49.7]} 23. Re4 {[%clk 0:02:09.7]} 23...
Qd7 {[%clk 0:00:28.7]} 24. a5 {[%clk 0:01:45.9]} 24... Qc7 {[%clk 0:00:26.7]}
25. f5 {[%clk 0:01:45.1]} 25... Qxa5 {[%clk 0:00:19.1]} 26. f6 {[%clk
0:01:45.9]} 26... g6 {[%clk 0:00:19.7]} 27. Qg4 {[%clk 0:01:39.8]} 27... Kh7
{[%clk 0:00:20.1]} 28. Bxf7 {[%clk 0:01:35.2]} 28... Qh5 {[%clk 0:00:12.9]} 29.
Qd7 {[%clk 0:01:14.5]} 29... Rc7 {[%clk 0:00:12.5]} 30. Bxg6+ {[%clk 0:01:13.6]}
1-0

[Event "*** Titled Tuesday 3|2 Blitz"]
[Site "Chess.com"]
[Date "2015.10.06"]
[Round "4"]
[White "GMVallejo"]
[Black "Bab3s"]
[Result "1-0"]
[WhiteElo "2595"]
[BlackElo "2127"]
[TimeControl "180+2"]
[EndTime "17:47:44 PDT"]
[Termination "GMVallejo won on time"]

1. e4 {[%clk 0:03:01.9]} 1... e5 {[%clk 0:03:00.5]} 2. Nf3 {[%clk 0:03:01.4]}
2... Nc6 {[%clk 0:03:01.7]} 3. Bb5 {[%clk 0:03:01.2]} 3... a6 {[%clk 0:03:02]}
4. Ba4 {[%clk 0:03:00.8]} 4... Nf6 {[%clk 0:03:02.7]} 5. d3 {[%clk 0:03:02]}
5... b5 {[%clk 0:03:03.1]} 6. Bb3 {[%clk 0:03:02.1]} 6... Be7 {[%clk 0:03:04.5]}
7. Nc3 {[%clk 0:03:00.2]} 7... d6 {[%clk 0:03:04.6]} 8. a3 {[%clk 0:02:59.4]}
8... O-O {[%clk 0:03:02.6]} 9. Ne2 {[%clk 0:02:55.1]} 9... Na5 {[%clk
0:02:47.2]} 10. Ba2 {[%clk 0:02:55.6]} 10... c5 {[%clk 0:02:48.3]} 11. Ng3
{[%clk 0:02:55.6]} 11... Nc6 {[%clk 0:02:48.7]} 12. O-O {[%clk 0:02:55.9]} 12...
Be6 {[%clk 0:02:26.9]} 13. Bxe6 {[%clk 0:02:55]} 13... fxe6 {[%clk 0:02:28.8]}
14. c3 {[%clk 0:02:56.9]} 14... h6 {[%clk 0:02:23.7]} 15. Qe2 {[%clk 0:02:56.3]}
15... Qc7 {[%clk 0:02:21.1]} 16. Bd2 {[%clk 0:02:52.9]} 16... Rad8 {[%clk
0:02:07.2]} 17. b4 {[%clk 0:02:48.3]} 17... d5 {[%clk 0:01:53.5]} 18. Rfc1
{[%clk 0:02:46.9]} 18... dxe4 {[%clk 0:01:43.2]} 19. dxe4 {[%clk 0:02:36.1]}
19... c4 {[%clk 0:01:41.4]} 20. a4 {[%clk 0:02:34.6]} 20... Rd7 {[%clk
0:01:31.1]} 21. Be3 {[%clk 0:02:33]} 21... Qb7 {[%clk 0:01:26.5]} 22. axb5
{[%clk 0:02:27.2]} 22... axb5 {[%clk 0:01:26.8]} 23. Qa2 {[%clk 0:02:13.1]}
23... Ng4 {[%clk 0:01:15.4]} 24. Bd2 {[%clk 0:01:59.9]} 24... Rd3 {[%clk
0:00:57.5]} 25. h3 {[%clk 0:01:50.8]} 25... Nf6 {[%clk 0:00:38.3]} 26. Qa6
{[%clk 0:01:38.9]} 26... Qd7 {[%clk 0:00:35.6]} 27. Be3 {[%clk 0:01:36.7]} 27...
Nd4 {[%clk 0:00:24.8]} 28. Nxe5 {[%clk 0:01:31.8]} 28... Qc7 {[%clk 0:00:12]}
29. Bxd4 {[%clk 0:01:26.1]} 29... Bxb4 {[%clk 0:00:06.1]} 30. Nxd3 {[%clk
0:01:17]} 30... cxd3 {[%clk 0:00:04.1]} 31. Qxe6+ {[%clk 0:01:14.9]} 31... Kh8
{[%clk 0:00:04.4]} 32. cxb4 {[%clk 0:01:15.7]} 32... Qf4 {[%clk 0:00:03.3]} 33.
Be3 {[%clk 0:01:14]} 33... Qh4 {[%clk 0:00:02]} 34. Rc8 {[%clk 0:01:12.8]} 1-0

[Event "*** Titled Tuesday 3|2 Blitz"]
[Site "Chess.com"]
[Date "2015.10.06"]
[Round "4"]
[White "jcibarra"]
[Black "Gabrinsky"]
[Result "1-0"]
[WhiteElo "2500"]
[BlackElo "2472"]
[TimeControl "180+2"]
[EndTime "17:47:55 PDT"]
[Termination "jcibarra won by resignation"]

1. e4 {[%clk 0:03:01.9]} 1... e6 {[%clk 0:03:01.3]} 2. d4 {[%clk 0:03:02.4]}
2... d5 {[%clk 0:03:02.7]} 3. Nc3 {[%clk 0:03:04]} 3... Nc6 {[%clk 0:03:03.8]}
4. Nf3 {[%clk 0:03:03.9]} 4... Nf6 {[%clk 0:03:05.2]} 5. e5 {[%clk 0:03:04.9]}
5... Ne4 {[%clk 0:03:06.3]} 6. Bd3 {[%clk 0:03:06]} 6... Bb4 {[%clk 0:03:07.3]}
7. Bd2 {[%clk 0:03:07.5]} 7... Nxd2 {[%clk 0:03:08.5]} 8. Qxd2 {[%clk 0:03:09]}
8... Bd7 {[%clk 0:03:10.1]} 9. a3 {[%clk 0:03:09.7]} 9... Ba5 {[%clk 0:03:11.5]}
10. b4 {[%clk 0:03:07.9]} 10... Bb6 {[%clk 0:03:12.9]} 11. Bb5 {[%clk
0:03:07.1]} 11... Ne7 {[%clk 0:02:57.5]} 12. a4 {[%clk 0:02:45.9]} 12... a6
{[%clk 0:02:47.9]} 13. Bd3 {[%clk 0:02:44.2]} 13... Nc6 {[%clk 0:02:47.1]} 14.
Ne2 {[%clk 0:02:41.7]} 14... f6 {[%clk 0:02:48.5]} 15. exf6 {[%clk 0:02:33.7]}
15... Qxf6 {[%clk 0:02:50.4]} 16. O-O {[%clk 0:02:28.1]} 16... e5 {[%clk
0:02:47.7]} 17. b5 {[%clk 0:01:50.4]} 17... Nxd4 {[%clk 0:02:24.9]} 18. Nexd4
{[%clk 0:01:48.7]} 18... exd4 {[%clk 0:02:25.8]} 19. Rfe1+ {[%clk 0:01:49.9]}
19... Kf8 {[%clk 0:02:19.2]} 20. Qb4+ {[%clk 0:01:44.5]} 20... Qd6 {[%clk
0:02:15.4]} 21. Qb2 {[%clk 0:01:36.5]} 21... g6 {[%clk 0:01:53.5]} 22. Nxd4
{[%clk 0:01:35.2]} 22... Qf6 {[%clk 0:01:54.5]} 23. c3 {[%clk 0:01:20.1]} 23...
axb5 {[%clk 0:01:48.1]} 24. Bxb5 {[%clk 0:01:12.8]} 24... Bxb5 {[%clk
0:01:41.5]} 25. Qxb5 {[%clk 0:01:06.7]} 25... Bxd4 {[%clk 0:01:36.2]} 26. cxd4
{[%clk 0:01:07.1]} 26... Qc6 {[%clk 0:01:28.8]} 27. Qb4+ {[%clk 0:01:05.5]}
27... Qd6 {[%clk 0:01:29.6]} 28. Qxd6+ {[%clk 0:00:56.5]} 28... cxd6 {[%clk
0:01:30.5]} 29. Rab1 {[%clk 0:00:55.3]} 29... Rg8 {[%clk 0:01:13.1]} 30. Rxb7
{[%clk 0:00:51]} 30... Rg7 {[%clk 0:01:14.1]} 31. Rxg7 {[%clk 0:00:39]} 31...
Kxg7 {[%clk 0:01:16]} 32. Ra1 {[%clk 0:00:40]} 32... Kf6 {[%clk 0:01:13]} 33. a5
{[%clk 0:00:40.4]} 33... Ke7 {[%clk 0:01:11.9]} 34. a6 {[%clk 0:00:39.1]} 34...
Kd7 {[%clk 0:01:13.3]} 35. a7 {[%clk 0:00:34.7]} 35... Kc6 {[%clk 0:01:14.2]}
36. f4 {[%clk 0:00:36.3]} 36... Kb6 {[%clk 0:01:13.8]} 37. g4 {[%clk 0:00:32.2]}
37... h5 {[%clk 0:01:06.3]} 38. gxh5 {[%clk 0:00:27.8]} 38... gxh5 {[%clk
0:01:08.2]} 39. f5 {[%clk 0:00:28.7]} 39... Kb7 {[%clk 0:01:09.1]} 40. Kf2
{[%clk 0:00:28.1]} 40... Kc7 {[%clk 0:01:09]} 41. Kf3 {[%clk 0:00:28.3]} 41...
Kb7 {[%clk 0:01:10.9]} 42. Kf4 {[%clk 0:00:29.3]} 42... Kc7 {[%clk 0:01:12.4]}
43. h4 {[%clk 0:00:30.4]} 43... Kb7 {[%clk 0:01:13.1]} 44. f6 {[%clk 0:00:31.8]}
44... Kc7 {[%clk 0:01:14.2]} 45. Kf5 {[%clk 0:00:33.2]} 45... Kb7 {[%clk
0:01:15.5]} 46. f7 {[%clk 0:00:34.4]} 1-0

[Event "*** Titled Tuesday 3|2 Blitz"]
[Site "Chess.com"]
[Date "2015.10.06"]
[Round "4"]
[White "Goala"]
[Black "josiwales"]
[Result "1-0"]
[WhiteElo "2139"]
[BlackElo "2042"]
[TimeControl "180+2"]
[EndTime "17:48:04 PDT"]
[Termination "Goala won by resignation"]

1. d4 {[%clk 0:03:01.9]} 1... f5 {[%clk 0:03:00.7]} 2. Nc3 {[%clk 0:02:59.9]}
2... Nf6 {[%clk 0:03:01.9]} 3. Bg5 {[%clk 0:02:59]} 3... e6 {[%clk 0:03:02.3]}
4. e4 {[%clk 0:02:56.3]} 4... fxe4 {[%clk 0:03:04.2]} 5. Nxe4 {[%clk 0:02:57.9]}
5... Be7 {[%clk 0:03:05.4]} 6. Bxf6 {[%clk 0:02:59]} 6... Bxf6 {[%clk
0:03:07.3]} 7. Nf3 {[%clk 0:03:00.6]} 7... O-O {[%clk 0:03:08]} 8. Bd3 {[%clk
0:03:02.2]} 8... Nc6 {[%clk 0:03:08]} 9. c3 {[%clk 0:03:03.3]} 9... Kh8 {[%clk
0:03:05.4]} 10. Qc2 {[%clk 0:03:04.8]} 10... g6 {[%clk 0:03:03.3]} 11. h4 {[%clk
0:03:04.4]} 11... d5 {[%clk 0:02:56.6]} 12. Neg5 {[%clk 0:03:00.5]} 12... e5
{[%clk 0:02:40.9]} 13. dxe5 {[%clk 0:02:59.6]} 13... Nxe5 {[%clk 0:02:42.8]} 14.
Nxe5 {[%clk 0:03:00.7]} 14... Bxe5 {[%clk 0:02:44.7]} 15. O-O-O {[%clk
0:03:00.5]} 15... Bf5 {[%clk 0:02:42]} 16. g3 {[%clk 0:02:45.9]} 16... c6 {[%clk
0:02:34]} 17. f4 {[%clk 0:02:30.8]} 17... Bg7 {[%clk 0:02:30.9]} 18. h5 {[%clk
0:02:29.6]} 18... h6 {[%clk 0:01:57.8]} 19. hxg6 {[%clk 0:02:10.5]} 19... Bxd3
{[%clk 0:01:56.2]} 20. Qxd3 {[%clk 0:02:11.1]} 20... Qf6 {[%clk 0:01:53]} 21.
Nf7+ {[%clk 0:02:07.3]} 21... Kg8 {[%clk 0:01:52.9]} 22. Nxh6+ {[%clk
0:02:06.8]} 22... Bxh6 {[%clk 0:01:53.3]} 23. Rxh6 {[%clk 0:02:08.7]} 23... Rae8
{[%clk 0:01:51.2]} 24. Rdh1 {[%clk 0:02:08.9]} 24... Re6 {[%clk 0:01:25]} 25.
Rh8+ {[%clk 0:01:37.8]} 25... Qxh8 {[%clk 0:01:23.8]} 26. Rxh8+ {[%clk
0:01:39.7]} 26... Kxh8 {[%clk 0:01:25.3]} 27. f5 {[%clk 0:01:41.3]} 27... Re5
{[%clk 0:01:11.3]} 28. g4 {[%clk 0:01:39.2]} 28... Kg7 {[%clk 0:01:01]} 29. Qd4
{[%clk 0:01:29.2]} 29... Re8 {[%clk 0:00:52.6]} 30. Qxa7 {[%clk 0:01:27.7]}
30... R8e7 {[%clk 0:00:49.5]} 31. Qd4 {[%clk 0:01:21]} 31... b5 {[%clk
0:00:31.5]} 32. Kc2 {[%clk 0:01:11.3]} 32... b4 {[%clk 0:00:20.5]} 33. Qxb4
{[%clk 0:01:07.4]} 33... Re2+ {[%clk 0:00:18.6]} 34. Kb3 {[%clk 0:01:08.7]}
34... R7e4 {[%clk 0:00:17.5]} 35. Qb7+ {[%clk 0:01:08.5]} 35... Kf6 {[%clk
0:00:16.6]} 36. Qf7+ {[%clk 0:01:05.5]} 36... Ke5 {[%clk 0:00:16.6]} 37. g7
{[%clk 0:01:07.4]} 37... c5 {[%clk 0:00:16.6]} 38. g8=Q {[%clk 0:00:59.5]} 38...
c4+ {[%clk 0:00:14.4]} 39. Ka3 {[%clk 0:00:57.9]} 39... Rxb2 {[%clk 0:00:15.2]}
1-0

[Event "*** Titled Tuesday 3|2 Blitz"]
[Site "Chess.com"]
[Date "2015.10.06"]
[Round "4"]
[White "Andnar"]
[Black "KyronGriffith"]
[Result "0-1"]
[WhiteElo "2240"]
[BlackElo "2227"]
[TimeControl "180+2"]
[EndTime "17:48:25 PDT"]
[Termination "KyronGriffith won by checkmate"]

1. e4 {[%clk 0:03:00.9]} 1... e5 {[%clk 0:02:58.6]} 2. Nf3 {[%clk 0:03:02]} 2...
d6 {[%clk 0:02:59.2]} 3. d4 {[%clk 0:03:02]} 3... Nd7 {[%clk 0:03:00.8]} 4. Bc4
{[%clk 0:03:00.2]} 4... Be7 {[%clk 0:02:46.3]} 5. Nc3 {[%clk 0:03:00.1]} 5...
Ngf6 {[%clk 0:02:46.6]} 6. dxe5 {[%clk 0:02:59.1]} 6... Nxe5 {[%clk 0:02:47.1]}
7. Nxe5 {[%clk 0:02:59]} 7... dxe5 {[%clk 0:02:49]} 8. Qe2 {[%clk 0:03:00.2]}
8... c6 {[%clk 0:02:47.3]} 9. Bd2 {[%clk 0:02:58.4]} 9... Qc7 {[%clk 0:02:45.9]}
10. O-O-O {[%clk 0:02:58.6]} 10... b5 {[%clk 0:02:45.4]} 11. Bb3 {[%clk
0:02:59.1]} 11... a5 {[%clk 0:02:36.4]} 12. a4 {[%clk 0:02:59.9]} 12... b4
{[%clk 0:02:37.4]} 13. Nb1 {[%clk 0:03:00]} 13... O-O {[%clk 0:02:33.2]} 14. f3
{[%clk 0:02:56.8]} 14... Ba6 {[%clk 0:02:21.8]} 15. Qf2 {[%clk 0:02:49.8]} 15...
c5 {[%clk 0:02:20.6]} 16. Bd5 {[%clk 0:02:51.3]} 16... Nxd5 {[%clk 0:02:19.5]}
17. exd5 {[%clk 0:02:53.2]} 17... c4 {[%clk 0:02:17.9]} 18. Be3 {[%clk
0:02:52.2]} 18... Rab8 {[%clk 0:02:13.9]} 19. Qg3 {[%clk 0:02:34.9]} 19... f5
{[%clk 0:02:08.9]} 20. Bh6 {[%clk 0:02:33.3]} 20... Bf6 {[%clk 0:02:08.5]} 21.
Bg5 {[%clk 0:02:12.5]} 21... Bxg5+ {[%clk 0:01:59.7]} 22. Qxg5 {[%clk
0:02:14.4]} 22... Qd7 {[%clk 0:01:57.9]} 23. Rhe1 {[%clk 0:02:13.2]} 23... Rbe8
{[%clk 0:01:43.4]} 24. Qe3 {[%clk 0:01:58.4]} 24... Qxa4 {[%clk 0:01:34.2]} 25.
Qa7 {[%clk 0:01:54]} 25... Qb5 {[%clk 0:01:29.2]} 26. d6 {[%clk 0:01:53.4]}
26... Rd8 {[%clk 0:01:26.2]} 27. Qe3 {[%clk 0:00:43]} 27... Rfe8 {[%clk
0:01:16.1]} 28. Qg5 {[%clk 0:00:43.6]} 28... Bc8 {[%clk 0:01:00.6]} 29. f4
{[%clk 0:00:35.2]} 29... e4 {[%clk 0:00:58.1]} 30. g4 {[%clk 0:00:31.7]} 30...
Bd7 {[%clk 0:00:55.6]} 31. Nd2 {[%clk 0:00:24.4]} 31... c3 {[%clk 0:00:54.8]}
32. Nb3 {[%clk 0:00:25.5]} 32... cxb2+ {[%clk 0:00:55.2]} 33. Kb1 {[%clk
0:00:26.9]} 33... a4 {[%clk 0:00:54.5]} 34. Nd4 {[%clk 0:00:28.1]} 34... Qc4
{[%clk 0:00:49.8]} 35. gxf5 {[%clk 0:00:29.2]} 35... a3 {[%clk 0:00:48.6]} 36.
Nb3 {[%clk 0:00:30.3]} 36... Ba4 {[%clk 0:00:36.5]} 37. Rd4 {[%clk 0:00:13.6]}
37... a2+ {[%clk 0:00:36.5]} 38. Kxa2 {[%clk 0:00:13.4]} 38... Bxb3+ {[%clk
0:00:37.3]} 39. cxb3 {[%clk 0:00:15]} 39... Ra8+ {[%clk 0:00:36.1]} 40. Kb1
{[%clk 0:00:15.2]} 40... Ra1+ {[%clk 0:00:34.9]} 41. Kxb2 {[%clk 0:00:16.2]}
41... Qc3# {[%clk 0:00:36.8]} 0-1

[Event "*** Titled Tuesday 3|2 Blitz"]
[Site "Chess.com"]
[Date "2015.10.06"]
[Round "4"]
[White "facu57"]
[Black "IMRosen"]
[Result "1-0"]
[WhiteElo "2515"]
[BlackElo "2262"]
[TimeControl "180+2"]
[EndTime "17:50:18 PDT"]
[Termination "facu57 won by resignation"]

1. d4 {[%clk 0:03:01.9]} 1... d5 {[%clk 0:03:00.9]} 2. c4 {[%clk 0:03:02.7]}
2... e6 {[%clk 0:03:02.5]} 3. Nc3 {[%clk 0:03:03.2]} 3... Nf6 {[%clk 0:03:04]}
4. Bg5 {[%clk 0:03:03.5]} 4... Be7 {[%clk 0:03:04.9]} 5. e3 {[%clk 0:03:04.2]}
5... O-O {[%clk 0:03:04.7]} 6. Nf3 {[%clk 0:03:05]} 6... a6 {[%clk 0:03:05.6]}
7. cxd5 {[%clk 0:03:04.5]} 7... exd5 {[%clk 0:03:07.5]} 8. Bd3 {[%clk
0:03:04.7]} 8... Nbd7 {[%clk 0:03:08.6]} 9. Ne5 {[%clk 0:03:02.7]} 9... Nxe5
{[%clk 0:03:00.8]} 10. dxe5 {[%clk 0:03:04.6]} 10... Nd7 {[%clk 0:03:02.5]} 11.
Bf4 {[%clk 0:03:05.2]} 11... c6 {[%clk 0:03:01.1]} 12. O-O {[%clk 0:03:05.7]}
12... Re8 {[%clk 0:02:53]} 13. a3 {[%clk 0:02:59.5]} 13... f6 {[%clk 0:02:53]}
14. Qh5 {[%clk 0:02:57.7]} 14... Nf8 {[%clk 0:02:53.3]} 15. Rad1 {[%clk
0:02:54.4]} 15... fxe5 {[%clk 0:02:50.7]} 16. Bxe5 {[%clk 0:02:52]} 16... g6
{[%clk 0:02:31]} 17. Qh6 {[%clk 0:02:28.5]} 17... Bf6 {[%clk 0:02:27.9]} 18.
Bxf6 {[%clk 0:02:21]} 18... Qxf6 {[%clk 0:02:29.8]} 19. Rfe1 {[%clk 0:02:14.3]}
19... Be6 {[%clk 0:02:23.1]} 20. e4 {[%clk 0:02:14.2]} 20... d4 {[%clk
0:02:23.8]} 21. e5 {[%clk 0:02:12.2]} 21... Qg7 {[%clk 0:02:22.3]} 22. Qxg7+
{[%clk 0:02:13]} 22... Kxg7 {[%clk 0:02:24.2]} 23. Ne4 {[%clk 0:02:14.8]} 23...
Red8 {[%clk 0:02:17.3]} 24. Nc5 {[%clk 0:02:14.4]} 24... b6 {[%clk 0:02:15.4]}
25. Ne4 {[%clk 0:01:55.1]} 25... c5 {[%clk 0:02:13.4]} 26. Nd6 {[%clk
0:01:54.7]} 26... Nd7 {[%clk 0:01:52.9]} 27. Be4 {[%clk 0:01:48.3]} 27... Ra7
{[%clk 0:01:51.2]} 28. f4 {[%clk 0:01:48.8]} 28... Rf8 {[%clk 0:01:43.8]} 29. g3
{[%clk 0:01:49.5]} 29... Rc7 {[%clk 0:01:32.5]} 30. b4 {[%clk 0:01:43.9]} 30...
a5 {[%clk 0:01:24.4]} 31. Nb5 {[%clk 0:01:40.9]} 31... Rcc8 {[%clk 0:01:22.5]}
32. Nd6 {[%clk 0:01:41.6]} 32... Rc7 {[%clk 0:01:23.4]} 33. bxa5 {[%clk
0:01:34.2]} 33... bxa5 {[%clk 0:01:25.3]} 34. Rc1 {[%clk 0:01:30.3]} 34... Rb8
{[%clk 0:01:12.9]} 35. Red1 {[%clk 0:01:31.3]} 35... Ra7 {[%clk 0:00:58.6]} 36.
a4 {[%clk 0:01:12.8]} 36... Rb4 {[%clk 0:00:53.2]} 37. Nb5 {[%clk 0:01:09]}
37... Ra6 {[%clk 0:00:53.6]} 38. Nc7 {[%clk 0:00:57.3]} 38... Rab6 {[%clk
0:00:52.4]} 39. Nxe6+ {[%clk 0:00:58.4]} 39... Rxe6 {[%clk 0:00:54.3]} 40. Bd5
{[%clk 0:01:00.3]} 40... Re7 {[%clk 0:00:50]} 41. Bc6 {[%clk 0:00:57.3]} 41...
Kf7 {[%clk 0:00:26.2]} 42. Rd3 {[%clk 0:00:53.3]} 42... Ke6 {[%clk 0:00:23]} 43.
Rc2 {[%clk 0:00:45.9]} 43... h6 {[%clk 0:00:11.5]} 44. Kg2 {[%clk 0:00:45.5]}
44... Rf7 {[%clk 0:00:12.9]} 45. h4 {[%clk 0:00:42.2]} 45... Re7 {[%clk
0:00:11]} 46. Kf3 {[%clk 0:00:39.8]} 46... Rf7 {[%clk 0:00:12.2]} 47. Ke4 {[%clk
0:00:38.5]} 47... g5 {[%clk 0:00:10.2]} 48. Bd5+ {[%clk 0:00:39.2]} 48... Ke7
{[%clk 0:00:10.7]} 49. Bxf7 {[%clk 0:00:40.1]} 49... Kxf7 {[%clk 0:00:12.6]} 50.
hxg5 {[%clk 0:00:41.8]} 50... hxg5 {[%clk 0:00:14]} 51. f5 {[%clk 0:00:43.4]}
51... Ke7 {[%clk 0:00:15.1]} 52. Rh2 {[%clk 0:00:43.9]} 52... Rb1 {[%clk
0:00:14.6]} 53. Rh7+ {[%clk 0:00:44.6]} 53... Kd8 {[%clk 0:00:15.7]} 54. Kd5
{[%clk 0:00:42.2]} 54... Re1 {[%clk 0:00:14.7]} 55. Kd6 {[%clk 0:00:35.1]} 55...
Rxe5 {[%clk 0:00:11.3]} 56. Rxd7+ {[%clk 0:00:34.4]} 56... Kc8 {[%clk
0:00:11.3]} 57. Rc7+ {[%clk 0:00:34.8]} 57... Kd8 {[%clk 0:00:12.3]} 58. Kxe5
{[%clk 0:00:35.1]} 58... Kxc7 {[%clk 0:00:13.4]} 59. Kd5 {[%clk 0:00:36.7]}
59... c4 {[%clk 0:00:15.3]} 60. Kxc4 {[%clk 0:00:37.6]} 1-0

[Event "*** Titled Tuesday 3|2 Blitz"]
[Site "Chess.com"]
[Date "2015.10.06"]
[Round "4"]
[White "UltimateCrusher2"]
[Black "Penguininja"]
[Result "0-1"]
[WhiteElo "2015"]
[BlackElo "2158"]
[TimeControl "180+2"]
[EndTime "17:50:28 PDT"]
[Termination "Penguininja won by checkmate"]

1. e4 {[%clk 0:02:30.9]} 1... e5 {[%clk 0:02:56.8]} 2. Nf3 {[%clk 0:02:25.8]}
2... Nc6 {[%clk 0:02:56.7]} 3. Bc4 {[%clk 0:02:22.1]} 3... Bc5 {[%clk
0:02:56.6]} 4. O-O {[%clk 0:02:21.2]} 4... Nf6 {[%clk 0:02:56.9]} 5. Re1 {[%clk
0:02:17.9]} 5... d6 {[%clk 0:02:54.8]} 6. h3 {[%clk 0:02:18.2]} 6... O-O {[%clk
0:02:55.2]} 7. c3 {[%clk 0:02:18.9]} 7... a6 {[%clk 0:02:49.9]} 8. d3 {[%clk
0:02:19.3]} 8... h6 {[%clk 0:02:49.4]} 9. Be3 {[%clk 0:02:17.6]} 9... Bxe3
{[%clk 0:02:47.8]} 10. Rxe3 {[%clk 0:02:18.1]} 10... Na5 {[%clk 0:02:44.8]} 11.
Nbd2 {[%clk 0:02:13.5]} 11... Nxc4 {[%clk 0:02:37]} 12. Nxc4 {[%clk 0:02:14.6]}
12... Be6 {[%clk 0:02:38.2]} 13. Re1 {[%clk 0:02:08]} 13... Bxc4 {[%clk
0:02:28.9]} 14. dxc4 {[%clk 0:02:09.1]} 14... Qe7 {[%clk 0:02:29.8]} 15. Qd3
{[%clk 0:02:00.9]} 15... Nd7 {[%clk 0:02:29.4]} 16. Rad1 {[%clk 0:02:00.9]}
16... Nc5 {[%clk 0:02:29.5]} 17. Qc2 {[%clk 0:02:02.5]} 17... Qe6 {[%clk
0:02:23.4]} 18. b3 {[%clk 0:01:58.9]} 18... a5 {[%clk 0:02:24.3]} 19. Rd5 {[%clk
0:01:33.4]} 19... Nd7 {[%clk 0:02:18.6]} 20. Red1 {[%clk 0:01:27.3]} 20... Nf6
{[%clk 0:02:17.6]} 21. R5d2 {[%clk 0:01:24.5]} 21... b6 {[%clk 0:02:16.2]} 22.
a4 {[%clk 0:01:23.3]} 22... Nh5 {[%clk 0:02:13.9]} 23. Nh4 {[%clk 0:01:07.4]}
23... Nf4 {[%clk 0:02:07.3]} 24. Nf5 {[%clk 0:01:08.5]} 24... Kh8 {[%clk
0:01:59.8]} 25. Kh2 {[%clk 0:01:02.6]} 25... Ng6 {[%clk 0:01:49.3]} 26. g3
{[%clk 0:01:00.1]} 26... Rfe8 {[%clk 0:01:38.9]} 27. Qd3 {[%clk 0:00:59.9]}
27... Nf8 {[%clk 0:01:39.2]} 28. Qd5 {[%clk 0:01:00.4]} 28... Qd7 {[%clk
0:01:33.7]} 29. Qd3 {[%clk 0:01:00.6]} 29... Ne6 {[%clk 0:01:32.8]} 30. Ne3
{[%clk 0:01:00.9]} 30... Nc5 {[%clk 0:01:28.2]} 31. Qc2 {[%clk 0:01:01]} 31...
Ne6 {[%clk 0:01:22.5]} 32. Nf5 {[%clk 0:01:01.1]} 32... Ng5 {[%clk 0:01:22.8]}
33. Qd3 {[%clk 0:00:50.7]} 33... g6 {[%clk 0:01:04.8]} 34. h4 {[%clk 0:00:51.7]}
34... Nxe4 {[%clk 0:00:57]} 35. Qxe4 {[%clk 0:00:34.4]} 35... Qxf5 {[%clk
0:00:57.6]} 36. Qxf5 {[%clk 0:00:35.7]} 36... gxf5 {[%clk 0:00:58.6]} 37. Re2
{[%clk 0:00:36.7]} 37... Kg7 {[%clk 0:00:58.2]} 38. Rde1 {[%clk 0:00:35.7]}
38... Kf6 {[%clk 0:00:58.8]} 39. f4 {[%clk 0:00:36.6]} 39... e4 {[%clk
0:00:57.4]} 40. Rd1 {[%clk 0:00:37.5]} 40... h5 {[%clk 0:00:47.5]} 41. Kg2
{[%clk 0:00:38.1]} 41... Rg8 {[%clk 0:00:43.8]} 42. Kf2 {[%clk 0:00:39.3]} 42...
Rg7 {[%clk 0:00:43.4]} 43. Rd5 {[%clk 0:00:39.7]} 43... Rag8 {[%clk 0:00:43.9]}
44. Re3 {[%clk 0:00:41.1]} 44... Ke6 {[%clk 0:00:45.1]} 45. Rd4 {[%clk
0:00:42.3]} 45... f6 {[%clk 0:00:38.9]} 46. Rd2 {[%clk 0:00:43.1]} 46... Rg4
{[%clk 0:00:39.4]} 47. Rd5 {[%clk 0:00:43.3]} 47... Rd8 {[%clk 0:00:39]} 48. Re2
{[%clk 0:00:42]} 48... Rg7 {[%clk 0:00:34.8]} 49. Re3 {[%clk 0:00:40.2]} 49...
Rdd7 {[%clk 0:00:34.9]} 50. Re2 {[%clk 0:00:40.8]} 50... Rg6 {[%clk 0:00:35.6]}
51. Re3 {[%clk 0:00:41.2]} 51... Rg8 {[%clk 0:00:37.1]} 52. Re2 {[%clk
0:00:42.5]} 52... Rdg7 {[%clk 0:00:37.5]} 53. Re3 {[%clk 0:00:43.2]} 53... Rg6
{[%clk 0:00:38.1]} 54. Rd2 {[%clk 0:00:42.5]} 54... Rd8 {[%clk 0:00:36.1]} 55.
Rd5 {[%clk 0:00:43.4]} 55... c6 {[%clk 0:00:37.2]} 56. Rd4 {[%clk 0:00:44.2]}
56... Rg7 {[%clk 0:00:37.9]} 57. Re2 {[%clk 0:00:45]} 57... Rdg8 {[%clk
0:00:38.9]} 58. Re3 {[%clk 0:00:43.9]} 58... d5 {[%clk 0:00:38.4]} 59. cxd5+
{[%clk 0:00:44.5]} 59... cxd5 {[%clk 0:00:40.3]} 60. c4 {[%clk 0:00:45.5]} 60...
Rd7 {[%clk 0:00:41.6]} 61. Re2 {[%clk 0:00:42.8]} 61... dxc4 {[%clk 0:00:40.9]}
62. Rxc4 {[%clk 0:00:44.7]} 62... Rd3 {[%clk 0:00:41.5]} 63. Rc6+ {[%clk
0:00:39.4]} 63... Ke7 {[%clk 0:00:41.9]} 64. Rc7+ {[%clk 0:00:23.6]} 64... Kd6
{[%clk 0:00:41.5]} 65. Rf7 {[%clk 0:00:23.4]} 65... Ke6 {[%clk 0:00:39.7]} 66.
Rb7 {[%clk 0:00:22.4]} 66... Rgxg3 {[%clk 0:00:39.9]} 67. Rxb6+ {[%clk
0:00:23.8]} 67... Ke7 {[%clk 0:00:41.3]} 68. Rc2 {[%clk 0:00:24.9]} 68... Rdf3+
{[%clk 0:00:38.4]} 69. Ke2 {[%clk 0:00:23.6]} 69... Rg2+ {[%clk 0:00:38.6]} 70.
Kd1 {[%clk 0:00:25.1]} 70... Rf1# {[%clk 0:00:39.2]} 0-1